bitfinex/quotes_ETHUSD_20260302
["timestamp","ask_amount","ask_price","bid_price","bid_amount"]
[1772431417892,7.41315658,1965.9,1965.1,5.03805352]
[1772431417893,5.93856168,1965.9,1965.1,5.03805352]
[1772431418073,7.41315658,1966.2,1965.2,6.4994656]
[1772431418274,2.61971967,1966.4,1965.6,1.4745949]
[1772431418470,5.93856168,1966.5,1965.6,6.4994656]
[1772431418672,5.93856168,1966.5,1965.6,1.4745949]
[1772431418872,5.93856168,1966.4,1965.4,6.4994656]
[1772431419218,7.20969595,1966.8,1965.5,5.01178316]
[1772431419503,5.93856168,1966.7,1965.7,5.01178316]
[1772431419864,5.93856168,1966.7,1965.6,2.9625949]
[1772431419865,5.93856168,1966.5,1965.6,2.75983098]
[1772431420067,5.93856168,1966.3,1965.6,2.75983098]
[1772431420262,5.93856168,1966.3,1965.5,1.27194098]
[1772431420997,5.93856168,1966.3,1965.6,1.4745949]
[1772431421196,5.93856168,1966.3,1965.5,1.27194098]
[1772431422419,5.93856168,1966.3,1965.6,1.4745949]
[1772431422767,5.93856168,1966.3,1965.5,1.27194098]
[1772431422988,5.93856168,1966.3,1965.4,1.27196137]
[1772431422989,5.93856168,1966.0,1965.4,1.27196137]
[1772431424281,5.93856168,1966.0,1965.3,5.08811721]
[1772431424620,5.93856168,1966.0,1965.1,5.08878433]
[1772431424621,5.93856168,1965.8,1965.1,5.0886148]
[1772431424916,0.02653,1965.3,1965.1,5.0886148]
[1772431425131,5.93856168,1965.8,1965.1,5.0886148]
[1772431425336,5.93856168,1965.8,1965.5,0.0011]
[1772431426678,5.93856168,1965.8,1965.4,0.0011]
[1772431427388,5.59496742,1965.5,1965.2,0.0011]
[1772431427690,5.59496742,1965.4,1965.2,0.0011]
[1772431429183,5.59496742,1965.2,1964.5,1.27258844]
[1772431429505,5.59496742,1965.2,1964.6,0.00263886]
[1772431429506,1.4745949,1965.0,1964.6,0.00263886]
[1772431429707,5.59496742,1965.5,1964.6,0.00263886]
[1772431430089,5.59496742,1965.3,1964.6,0.00263886]
[1772431430588,5.59496742,1965.6,1964.6,4.87192222]
[1772431430791,8.21468709,1965.9,1964.9,6.34387826]
[1772431430987,9.48637538,1965.9,1964.9,4.86928336]
[1772431431203,5.59496742,1965.5,1965.0,0.00263886]
[1772431433199,1.4745949,1965.6,1965.0,0.00263886]
[1772431433714,3.057,1965.7,1965.0,0.00263886]
[1772431434015,1.47613376,1966.0,1965.0,4.83702506]
[1772431434517,5.59496742,1965.9,1965.0,4.83702506]
[1772431434723,1.4745949,1965.6,1965.0,0.00263886]
[1772431435225,7.27937118,1966.0,1965.0,0.00263886]
[1772431435226,8.34131027,1965.8,1965.0,0.00263886]
[1772431435521,8.34131414,1965.8,1965.0,0.00263886]
[1772431435883,5.59496742,1965.8,1965.0,0.00263886]
[1772431436087,0.00153886,1966.0,1965.2,4.80018047]
[1772431436518,1.4745949,1965.8,1965.3,0.00263886]
[1772431436696,7.07110118,1966.0,1965.3,0.00263886]
[1772431437087,8.3427279,1966.0,1965.3,0.00263886]
[1772431437288,7.07110118,1966.0,1965.3,0.00263886]
[1772431437507,5.59650628,1966.0,1965.3,0.00263886]
[1772431437716,0.00153886,1966.0,1965.3,4.79157574]
[1772431437932,0.00153886,1966.0,1965.4,4.78793688]
[1772431438233,11.80302542,1966.6,1965.6,4.77677931]
[1772431438388,2.3814631,1966.5,1965.6,4.77677931]
[1772431438590,2.3814631,1966.6,1965.8,4.77677931]
[1772431438894,2.3814631,1966.7,1965.8,4.77677931]
[1772431439098,4.5285949,1966.8,1966.0,1.27161749]
[1772431439500,1.4745949,1966.8,1966.0,1.27161749]
[1772431439714,4.5275949,1966.8,1966.0,1.27161749]
[1772431439913,5.59496742,1966.9,1966.0,1.27161749]
[1772431440116,5.59496742,1966.9,1966.1,0.00263886]
[1772431441827,5.59496742,1966.9,1966.1,4.83468107]
[1772431442001,0.00153886,1967.0,1966.3,6.30663711]
[1772431442200,0.00153886,1967.0,1966.3,4.83204221]
[1772431442395,0.00153886,1967.0,1966.4,0.00263886]
[1772431442620,0.00153886,1967.0,1966.5,4.82098406]
[1772431442793,0.00153886,1967.0,1966.6,0.00263886]
[1772431442994,6.86563262,1967.5,1966.6,0.00263886]
[1772431443194,7.06956232,1967.4,1966.6,0.00263886]
[1772431443390,7.06956232,1967.4,1966.6,1.27386839]
[1772431443586,1.27067457,1967.5,1966.6,1.27386839]
[1772431443791,8.34019431,1967.6,1966.6,6.08234609]
[1772431444529,8.34019431,1967.6,1966.6,7.55694099]
[1772431444842,5.59496742,1967.6,1966.7,4.79765182]
[1772431445540,5.59496742,1967.6,1966.8,1.27373912]
[1772431445704,6.86555453,1967.6,1966.8,6.06058907]
[1772431445905,5.59496742,1967.5,1966.8,1.27373912]
[1772431446201,5.59496742,1967.8,1966.9,4.77614873]
[1772431446513,6.86542222,1967.8,1966.9,4.77614873]
[1772431447030,5.59496742,1967.8,1966.9,4.77614873]
[1772431447237,6.8654257,1967.8,1966.9,4.77614873]
[1772431448640,6.8654257,1967.8,1967.0,1.27097102]
[1772431449133,6.8654257,1967.8,1967.0,6.02594589]
[1772431449533,6.8654257,1967.8,1967.1,0.00263886]
[1772431449719,5.59496742,1967.8,1967.1,0.00263886]
[1772431450136,0.001,1967.7,1967.1,0.00263886]
[1772431450448,0.001,1967.7,1967.1,4.73677998]
[1772431450853,0.001,1967.7,1967.2,1.2708418]
[1772431453326,0.001,1967.7,1967.1,0.00263886]
[1772431453522,5.59596742,1967.7,1967.1,0.00263886]
[1772431453728,5.59496742,1967.2,1966.5,1.27237062]
[1772431453961,1.4745949,1966.9,1966.6,0.00263886]
[1772431454164,5.59496742,1967.0,1966.6,0.00263886]
[1772431455748,7.11688896,1966.8,1966.5,0.0011]
[1772431455947,5.64229406,1966.7,1966.4,0.0011]
[1772431456137,5.64229406,1966.5,1966.2,0.0011]
[1772431457144,5.47725196,1966.4,1966.0,0.00153886]
[1772431457362,5.47725196,1966.2,1966.0,0.00153886]
[1772431457766,6.74880478,1966.1,1965.3,1.27207042]
[1772431457972,5.47725196,1966.1,1965.3,1.27207042]
[1772431458182,5.47725196,1966.4,1965.5,4.64453319]
[1772431459180,4.30527603,1966.6,1965.5,4.64453319]
[1772431459181,3.033,1966.6,1965.5,4.64453319]
[1772431459339,5.47725196,1966.7,1965.8,6.70633393]
[1772431459539,5.47725196,1966.7,1965.8,4.63508029]
[1772431459742,6.74842319,1966.7,1965.9,1.27168218]
[1772431460058,5.47725196,1966.5,1965.9,1.27168218]
[1772431460244,8.51025196,1966.8,1965.9,1.27168218]
[1772431460445,5.47725196,1966.7,1965.9,1.27168218]
[1772431461773,5.47725196,1966.7,1965.8,9.70282476]
[1772431462172,0.00153886,1967.0,1966.2,5.95946631]
[1772431462375,6.74977143,1967.0,1966.2,5.95946631]
[1772431462551,5.47879082,1967.0,1966.2,5.95946631]
[1772431462756,0.00153886,1967.0,1966.4,5.95946631]
[1772431463755,0.00153886,1967.0,1966.5,7.23076048]
[1772431463951,0.00153886,1967.0,1966.6,5.95946631]
[1772431465190,0.001,1967.7,1966.8,5.95946631]
[1772431465495,0.001,1967.7,1966.5,6.02854781]
[1772431465496,5.47725196,1967.5,1966.5,9.91676048]
[1772431465666,5.47725196,1967.5,1966.6,5.95946631]
[1772431465869,0.001,1967.7,1966.8,7.23056657]
[1772431468406,0.001,1967.7,1966.9,5.95946631]
[1772431470214,0.001,1967.7,1967.0,7.23043733]
[1772431470808,0.001,1967.7,1967.0,3.34222466]
[1772431471009,0.001,1967.7,1967.1,5.95946631]
[1772431473006,0.001,1967.7,1967.2,7.23030811]
[1772431474030,0.001,1967.7,1967.4,5.95946631]
[1772431475017,0.001,1967.7,1967.5,1.27064803]
[1772431475310,0.001,1967.9,1967.5,3.34190167]
[1772431475698,0.001,1967.9,1967.5,7.23011434]
[1772431476389,0.001,1967.6,1967.5,7.23011434]
[1772431476711,0.001,1967.9,1967.5,7.23011434]
[1772431477185,5.47825196,1967.9,1967.0,7.23037272]
[1772431478210,5.47825196,1967.9,1967.1,5.95946631]
[1772431479313,6.748678,1967.9,1967.2,1.2708418]
[1772431480491,5.47825196,1967.9,1967.2,1.2708418]
[1772431480815,5.47825196,1967.9,1967.2,7.23030811]
[1772431485819,0.001,1967.9,1967.2,7.23030811]
[1772431486827,5.47725196,1967.7,1967.2,1.2708418]
[1772431488823,5.69070229,1967.9,1967.2,7.21298207]
[1772431489345,0.001,1967.9,1967.2,7.21298207]
[1772431489492,0.001,1967.6,1967.2,7.21298207]
[1772431489695,0.001,1967.9,1967.3,5.94214027]
[1772431489898,0.001,1967.9,1967.5,5.94214027]
[1772431490123,0.001,1967.9,1967.3,2.681]
[1772431490302,0.001,1967.9,1967.4,5.94214027]
[1772431491425,0.001,1967.9,1967.5,7.2127883]
[1772431499298,0.001,1967.9,1967.7,5.94214027]
[1772431500444,0.001,1967.9,1967.8,1.27045431]
[1772431501541,0.001,1967.9,1967.7,1.27048016]
[1772431503130,0.001,1967.8,1967.7,1.27048016]
[1772431504246,5.68970229,1968.3,1967.7,1.27048016]
[1772431504832,5.68970229,1968.3,1967.7,7.21262043]
[1772431505854,5.68970229,1968.7,1967.9,5.94214027]
[1772431506146,5.68970229,1968.9,1968.2,5.94214027]
[1772431506311,5.68970229,1968.9,1968.3,2.697]
[1772431506509,5.68970229,1968.9,1968.3,8.63914027]
[1772431506709,5.68970229,1968.9,1967.8,5.94214027]
[1772431506928,5.68970229,1968.7,1968.0,1.2703252]
[1772431507125,5.68970229,1968.7,1967.9,2.7]
[1772431507323,5.68970229,1968.3,1967.8,1.270407]
[1772431508042,5.68970229,1968.3,1967.7,3.97047664]
[1772431509220,6.95983944,1968.3,1967.7,3.97047664]
[1772431509814,6.95983944,1968.3,1967.7,2.7]
[1772431510235,6.95983944,1968.3,1967.6,1.27053226]
[1772431510741,5.68970229,1968.3,1967.6,1.27053226]
[1772431510945,6.95983815,1968.3,1967.6,7.21267253]
[1772431511547,5.68970229,1968.3,1967.6,7.21267253]
[1772431511950,6.9598984,1968.2,1967.6,7.21267253]
[1772431514754,6.93436292,1968.6,1967.9,5.90743124]
[1772431515057,6.93432427,1968.6,1968.0,5.90743124]
[1772431515455,5.66437333,1968.7,1968.0,5.90743124]
[1772431515618,5.66437333,1968.7,1967.9,2.7]
[1772431515946,6.93456944,1968.2,1967.6,9.8779635]
[1772431517251,0.001,1968.1,1967.7,0.0011]
[1772431518338,5.86092691,1968.1,1967.7,0.0011]
[1772431520768,7.13123652,1968.1,1967.7,0.0011]
[1772431524240,7.13123652,1968.1,1967.5,0.0011]
[1772431525291,5.85992691,1968.0,1967.5,0.0011]
[1772431525456,5.85992691,1967.8,1967.4,0.0011]
[1772431526768,5.85992691,1967.8,1967.3,0.0011]
[1772431527970,7.13042954,1967.8,1967.3,0.0011]
[1772431530351,5.85992691,1967.6,1967.3,0.0011]
[1772431531050,1.27045485,1967.8,1967.3,5.47972824]
[1772431531655,5.86092691,1968.1,1967.5,5.47862824]
[1772431531857,0.001,1968.1,1967.8,1.27045431]
[1772431533154,0.001,1968.1,1967.8,5.47862824]
[1772431535047,7.12986117,1968.7,1967.9,5.47862824]
[1772431535252,7.12986117,1968.7,1968.0,6.74895344]
[1772431537191,5.85992691,1968.3,1967.8,5.47862824]
[1772431537390,5.85992691,1968.3,1967.8,1.2704041]
[1772431538295,5.85992691,1968.1,1967.4,1.27176042]
[1772431538591,5.85992691,1968.1,1967.4,6.75038866]
[1772431538786,5.85992691,1968.1,1967.4,6.75043115]
[1772431539491,7.13023289,1968.1,1967.4,6.75043115]
[1772431540979,1.47678805,1968.0,1967.4,0.0011]
[1772431541294,5.85992691,1967.9,1967.4,0.0011]
[1772431541593,5.85992691,1967.7,1967.4,0.0011]
[1772431543299,7.13030962,1968.0,1967.4,5.47972824]
[1772431543461,7.13030962,1968.0,1967.5,0.0011]
[1772431545591,7.13030962,1968.0,1967.4,0.0011]
[1772431546102,7.13030962,1968.0,1967.4,5.47972824]
[1772431547647,5.85992691,1968.0,1967.4,5.47972824]
[1772431547905,7.13026143,1968.0,1967.4,6.7503934]
[1772431548092,5.85992691,1968.0,1967.4,6.7503934]
[1772431548294,7.13026083,1968.0,1967.4,6.7503934]
[1772431548981,5.85992691,1968.0,1967.4,6.7503934]
[1772431549182,1.27130956,1968.1,1967.4,6.7503934]
[1772431549393,7.14707789,1968.1,1967.4,6.7503934]
[1772431550704,0.001,1968.1,1967.7,5.67008653]
[1772431551809,0.001,1968.1,1967.8,1.27045431]
[1772431552010,0.001,1968.1,1967.8,6.94054084]
[1772431552509,7.14581245,1968.5,1967.9,5.67008653]
[1772431552698,7.14581245,1968.5,1967.8,1.27045431]
[1772431553716,7.14581245,1968.5,1967.8,6.94054084]
[1772431554811,5.87576833,1968.5,1967.8,6.94054084]
[1772431555006,7.14577675,1968.5,1967.8,6.94054084]
[1772431555409,5.87576833,1968.4,1967.7,1.27046891]
[1772431555920,5.87576833,1968.4,1967.7,6.94055544]
[1772431556116,0.001,1968.0,1967.7,6.94055544]
[1772431557995,6.55679821,1968.8,1967.7,6.94055544]
[1772431557996,5.87576833,1968.6,1967.9,5.67008653]
[1772431558314,5.87576833,1968.6,1968.1,5.67008653]
[1772431558890,7.14571255,1968.6,1968.1,5.67008653]
[1772431559090,5.87576833,1968.6,1968.1,5.67008653]
[1772431559415,7.14561066,1968.8,1968.1,5.67008653]
[1772431560196,5.87576833,1968.1,1967.6,0.0011]
[1772431560601,5.87576833,1968.5,1967.7,5.67008653]
[1772431562313,7.14569125,1968.7,1967.9,5.67008653]
[1772431564521,7.14569125,1968.7,1968.0,6.94041173]
[1772431566732,7.14564367,1968.7,1968.0,6.94041173]
[1772431567400,7.14564367,1968.7,1968.0,1.2703252]
[1772431567623,5.87576833,1968.3,1967.7,13.45005701]
[1772431567929,5.87576833,1968.3,1967.8,5.67008653]
[1772431568310,5.87576833,1968.3,1968.0,0.0011]
[1772431569000,0.001,1968.6,1968.0,5.67118653]
[1772431570201,0.001,1968.6,1968.1,5.67008653]
[1772431570400,0.001,1968.6,1968.3,5.67008653]
[1772431570810,0.001,1968.6,1968.4,1.27006705]
[1772431571625,5.87676833,1968.6,1968.1,1.27026065]
[1772431572202,5.87676833,1968.6,1968.1,6.94034718]
[1772431573232,0.001,1968.6,1968.1,6.94034718]
[1772431577138,0.00153886,1969.0,1968.5,5.74687246]
[1772431577438,0.00153886,1969.0,1968.6,3.97593802]
[1772431578038,0.00153886,1969.0,1968.6,9.72281048]
[1772431578356,0.00153886,1969.0,1968.7,5.74687246]
[1772431579436,0.00153886,1969.0,1968.8,1.26980902]
[1772431580040,0.00153886,1969.0,1968.8,7.01668148]
[1772431581011,0.00153886,1969.0,1968.9,2.71]
[1772431581212,5.37953228,1969.4,1968.9,2.71]
[1772431581537,5.37953228,1969.4,1969.0,1.26968004]
[1772431581742,5.37953228,1969.4,1968.9,3.97969287]
[1772431583211,6.6489569,1969.4,1968.9,2.71]
[1772431583411,2.0658339,1969.3,1968.7,0.0011]
[1772431583613,5.37953228,1969.0,1968.7,0.0011]
[1772431584449,5.38053228,1969.6,1969.0,5.74687246]
[1772431585438,5.38053228,1969.6,1969.1,7.01648802]
[1772431585623,5.38053228,1969.6,1968.8,4.7768339]
[1772431585624,5.38053228,1969.6,1968.9,10.82571678]
[1772431585822,6.64983111,1969.6,1968.9,10.82571678]
[1772431586141,6.64982779,1969.6,1968.9,10.82571678]
[1772431587136,6.64982779,1969.6,1968.8,9.72765886]
[1772431587350,5.37953228,1969.5,1968.8,9.72765886]
[1772431587511,6.64892302,1969.5,1968.8,9.72765886]
[1772431587950,5.37953228,1969.5,1968.8,9.72765886]
[1772431588318,6.64889455,1969.5,1968.8,9.72765886]
[1772431589424,6.64889455,1969.5,1968.9,5.74687246]
[1772431589729,5.37953228,1969.5,1969.0,1.26968004]
[1772431589930,6.64889869,1969.5,1969.0,1.26968004]
[1772431590932,6.64889869,1969.5,1968.9,7.01660745]
[1772431591643,6.64889869,1969.5,1968.9,1.26973499]
[1772431594576,6.64889869,1969.5,1968.8,13.53708071]
[1772431594577,5.37953228,1968.9,1968.7,0.0011]
[1772431594721,5.37953228,1969.0,1968.7,0.0011]
[1772431594920,6.64889869,1969.5,1968.7,7.01783324]
[1772431595356,5.37953228,1969.3,1968.7,7.01783324]
[1772431595651,5.37953228,1969.3,1968.7,1.27096078]
[1772431596753,6.64908336,1969.2,1968.7,0.0011]
[1772431598328,5.37953228,1969.2,1968.7,0.0011]
[1772431598747,5.37953228,1969.2,1968.7,1.27097352]
[1772431598952,5.37953228,1969.2,1968.7,7.01784598]
[1772431600358,5.38053228,1969.4,1968.8,5.74687246]
[1772431600663,5.38053228,1969.4,1968.8,6.18925746]
[1772431601030,5.38053228,1969.4,1968.9,7.01661698]
[1772431602451,5.37953228,1969.2,1968.7,1.27093086]
[1772431602761,5.37953228,1969.2,1968.8,5.74687246]
[1772431602934,5.38053228,1969.4,1968.9,7.01661698]
[1772431604485,5.82291728,1969.4,1968.9,5.74687246]
[1772431604668,5.82291728,1969.4,1968.8,1.26976162]
[1772431605372,6.65000137,1969.4,1968.8,5.74687246]
[1772431606170,5.37953228,1969.3,1968.8,5.74687246]
[1772431607858,5.37953228,1969.3,1969.0,0.0011]
[1772431609369,6.64903074,1969.3,1969.0,0.0011]
[1772431610166,5.37953228,1969.3,1969.0,0.0011]
[1772431610565,1.71285879,1969.4,1969.1,5.42124563]
[1772431610566,0.001,1969.4,1969.1,5.42124563]
[1772431614679,0.001,1969.4,1969.2,1.26955108]
[1772431614890,1.27058274,1970.0,1969.3,5.42124563]
[1772431615058,1.27058274,1970.0,1969.1,1.26956703]
[1772431615059,5.88982314,1969.6,1969.1,1.26956703]
[1772431615383,5.88982314,1969.6,1969.0,10.50096094]
[1772431615384,5.88982314,1969.6,1969.0,5.42234563]
[1772431615575,5.44743814,1969.3,1969.0,0.0011]
[1772431616151,0.442385,1969.2,1969.0,0.0011]
[1772431616465,5.44578577,1969.2,1969.0,0.0011]
[1772431616670,6.71525607,1969.4,1969.0,0.0011]
[1772431617854,5.44578577,1969.4,1969.0,0.0011]
[1772431618590,6.71521375,1969.4,1969.0,0.0011]
[1772431618987,5.44578577,1969.4,1969.0,0.0011]
[1772431619903,5.88292334,1969.6,1969.0,5.42234563]
[1772431620057,5.44053834,1969.8,1969.2,5.86363063]
[1772431620587,5.44053834,1969.8,1969.0,2.7161]
[1772431620588,5.43875554,1969.7,1969.1,5.42124563]
[1772431620787,0.001,1969.3,1969.1,5.42124563]
[1772431620996,0.001,1969.3,1969.0,1.27077675]
[1772431621296,5.43696049,1969.7,1969.1,5.42124563]
[1772431621595,5.43796049,1969.9,1969.3,5.42124563]
[1772431621777,6.70706653,1969.9,1969.4,5.42124563]
[1772431622092,6.70706653,1969.9,1969.2,5.86363063]
[1772431622274,5.43796049,1969.9,1969.2,5.86363063]
[1772431622670,6.70706713,1969.9,1969.2,5.86363063]
[1772431624088,5.43796049,1969.9,1969.3,6.69073224]
[1772431625194,6.70706808,1969.9,1969.3,6.69073224]
[1772431626696,5.43796049,1969.9,1969.3,6.69073224]
[1772431626897,6.70706211,1969.9,1969.3,6.69073224]
[1772431628000,6.70706725,1969.9,1969.3,6.69073224]
[1772431628378,5.43796049,1969.9,1969.3,6.69073224]
[1772431628674,6.70706368,1969.9,1969.3,6.69073224]
[1772431628876,5.43796049,1969.9,1969.3,6.69073224]
[1772431629480,6.70706257,1969.9,1969.3,6.69073224]
[1772431629694,1.71148708,1969.9,1969.3,6.69073224]
[1772431629895,5.42317391,1969.8,1969.3,6.69073224]
[1772431630094,0.442385,1969.5,1969.1,6.69086119]
[1772431630289,0.442385,1969.5,1969.0,0.0011]
[1772431630290,5.86363484,1969.5,1969.0,1.27073961]
[1772431630584,5.42124984,1969.5,1969.0,1.27073961]
[1772431630898,5.42124984,1969.5,1969.0,6.69198524]
[1772431631289,6.69062915,1969.5,1969.0,6.69198524]
[1772431631607,5.42124984,1969.5,1969.0,6.69198524]
[1772431632892,5.42124984,1969.5,1969.2,0.0011]
[1772431634190,6.69062766,1969.5,1969.2,0.0011]
[1772431634429,5.42124984,1969.5,1969.2,0.0011]
[1772431635012,6.69061788,1969.5,1969.2,0.0011]
[1772431635320,6.69061788,1969.5,1969.0,0.0011]
[1772431635321,5.4133201,1969.3,1969.0,0.0011]
[1772431635485,2.944,1969.7,1969.0,0.0011]
[1772431635486,0.001,1969.8,1969.3,5.44699321]
[1772431635819,5.4132201,1969.8,1969.3,5.44699321]
[1772431636600,5.4132201,1969.8,1969.3,5.74181024]
[1772431636926,5.4132201,1969.8,1969.3,5.44699321]
[1772431637613,5.4132201,1969.8,1969.4,1.26942215]
[1772431639996,5.4132201,1969.8,1969.3,6.7164305]
[1772431640717,5.40369164,1969.7,1969.0,1.27072806]
[1772431640897,6.87776024,1969.6,1969.0,6.93369155]
[1772431641218,5.40369164,1969.5,1969.0,6.93369155]
[1772431645295,5.39327615,1969.0,1968.7,0.0011]
[1772431645497,1.4740686,1968.9,1968.6,0.0011]
[1772431645726,5.39327615,1968.8,1968.6,0.0011]
[1772431647301,6.66312776,1968.8,1968.6,0.0011]
[1772431647502,5.39327615,1968.8,1968.6,0.0011]
[1772431649321,6.66308532,1968.8,1968.6,0.0011]
[1772431649707,5.39327615,1968.8,1968.6,0.0011]
[1772431652440,5.37840513,1969.0,1968.6,0.0011]
[1772431652735,6.64799928,1969.2,1968.6,5.66406349]
[1772431652933,9.59196702,1969.2,1968.6,5.66406349]
[1772431653911,5.37618795,1969.1,1968.6,6.93395673]
[1772431654534,5.37618795,1969.1,1968.6,0.0011]
[1772431654733,5.37618795,1969.1,1968.6,1.27103712]
[1772431656858,5.3694953,1968.9,1968.6,0.0011]
[1772431657732,5.3694953,1968.9,1968.7,0.0011]
[1772431659038,6.63925114,1968.9,1968.7,0.0011]
[1772431659941,5.3694953,1968.9,1968.7,0.0011]
[1772431660438,9.5800814,1969.1,1968.7,5.66406349]
[1772431660944,8.31046102,1969.1,1968.7,5.66406349]
[1772431661119,4.21961603,1969.1,1968.7,5.66406349]
[1772431661319,5.35817078,1969.0,1968.7,5.66406349]
[1772431661643,5.35817078,1969.0,1968.7,6.93393015]
[1772431661842,5.35817078,1969.0,1968.7,5.66406349]
[1772431662347,5.35817078,1969.0,1968.7,6.93392909]
[1772431662844,5.35817078,1969.0,1968.7,5.66406349]
[1772431663943,5.35817078,1969.0,1968.7,6.93392909]
[1772431664147,5.35817078,1969.0,1968.7,5.66406349]
[1772431665155,9.86377977,1969.1,1968.7,5.66406349]
[1772431665642,0.29509474,1969.0,1968.7,5.66406349]
[1772431665946,0.29509474,1968.9,1968.7,0.0011]
[1772431666144,5.64188106,1968.9,1968.7,0.0011]
[1772431666345,5.64188106,1968.8,1968.5,0.0011]
[1772431666518,5.34678632,1968.8,1968.5,0.0011]
[1772431667778,1.47597456,1968.6,1968.4,0.0011]
[1772431668052,1.47597456,1968.6,1968.0,0.00263886]
[1772431668053,5.34455729,1968.2,1968.0,0.00263886]
[1772431668345,4.22213158,1968.3,1968.0,0.00263886]
[1772431668534,5.34227896,1968.2,1968.0,0.00263886]
[1772431670549,2.952,1968.3,1968.0,0.00263886]
[1772431670844,6.60780232,1968.4,1968.0,0.00263886]
[1772431671044,2.955,1968.3,1968.0,5.41790119]
[1772431672354,6.60535262,1968.5,1968.0,5.41790119]
[1772431672657,2.955,1968.4,1968.0,6.68820641]
[1772431673152,8.28548849,1968.4,1968.0,5.41790119]
[1772431673351,6.60047327,1968.6,1968.0,6.68822178]
[1772431673555,8.28648849,1968.5,1968.0,6.68822178]
[1772431674553,5.32807974,1968.4,1968.0,6.68821898]
[1772431675329,2.956,1968.5,1968.0,6.68821898]
[1772431675731,4.22601334,1968.5,1968.0,6.68821898]
[1772431676558,9.54923192,1968.5,1968.0,6.68821898]
[1772431677038,8.27921858,1968.5,1968.0,6.68821898]
[1772431677544,9.54922721,1968.5,1968.0,6.68821898]
[1772431677959,6.59322721,1968.5,1968.0,6.68821898]
[1772431678137,9.55022721,1968.5,1968.0,5.41790119]
[1772431678629,8.28021858,1968.5,1968.0,6.68821364]
[1772431679234,9.55023319,1968.5,1968.0,6.68821364]
[1772431680276,8.28021858,1968.5,1968.0,6.68821364]
[1772431680470,1.47597456,1968.8,1968.0,6.68821364]
[1772431680471,5.31353573,1968.8,1968.0,6.68821364]
[1772431680674,1.26987352,1968.7,1968.0,6.68821364]
[1772431680882,6.58340925,1968.7,1968.0,6.68821364]
[1772431681286,5.31353573,1968.7,1968.0,6.68821364]
[1772431682150,5.31353573,1968.7,1968.1,0.0011]
[1772431682355,5.31353573,1968.7,1968.2,5.41526233]
[1772431682581,5.31353573,1968.7,1968.3,1.27013158]
[1772431682757,5.31353573,1968.7,1968.3,6.68539391]
[1772431683675,5.31353573,1968.7,1968.3,1.27013158]
[1772431684074,5.31353573,1968.7,1968.3,6.68539391]
[1772431687176,6.56963879,1968.9,1968.3,6.68539391]
[1772431687878,6.86479626,1968.9,1968.3,6.68539391]
[1772431688083,5.29734807,1968.8,1968.3,6.68539391]
[1772431688485,5.29734807,1968.8,1968.4,5.41526233]
[1772431688977,5.29485406,1968.4,1968.1,0.0011]
[1772431689180,5.59001153,1968.4,1968.1,0.0011]
[1772431689482,5.29485406,1968.4,1968.1,0.0011]
[1772431689694,5.59001153,1968.4,1968.1,0.0011]
[1772431689913,1.27026065,1968.1,1968.0,0.00263886]
[1772431690058,1.27026065,1968.1,1967.3,1e-08]
[1772431690059,5.29127042,1968.0,1967.3,1e-08]
[1772431690380,5.58394483,1967.6,1967.3,0.00220001]
[1772431690686,5.28878736,1967.6,1967.3,0.00220001]
[1772431690852,5.58394483,1967.4,1967.3,1e-08]
[1772431691549,5.28878736,1967.4,1967.3,1e-08]
[1772431691948,6.55949997,1967.4,1967.3,1e-08]
[1772431692353,5.28878736,1967.4,1967.3,1e-08]
[1772431694585,6.54739029,1967.6,1967.3,1e-08]
[1772431696453,6.54739029,1967.6,1967.3,0.00220001]
[1772431696660,5.27516486,1967.7,1967.3,0.00220001]
[1772431697683,6.54375696,1968.0,1967.3,5.83418931]
[1772431697953,5.27343176,1967.8,1967.3,5.83418931]
[1772431698594,6.54389244,1967.8,1967.3,7.10495508]
[1772431698894,5.27343176,1967.8,1967.3,7.10495508]
[1772431699593,6.54390198,1967.8,1967.3,7.10495508]
[1772431700180,5.26593177,1968.1,1967.4,5.8319893]
[1772431700585,5.26593177,1968.1,1967.6,5.8319893]
[1772431701487,5.26593177,1968.1,1967.7,0.0022]
[1772431701787,5.08043502,1968.4,1967.7,5.8319893]
[1772431701788,6.53349913,1968.4,1967.7,5.8319893]
[1772431701990,6.53349913,1968.4,1967.8,5.8341893]
[1772431702155,6.53349913,1968.4,1967.8,5.8319893]
[1772431702358,6.53349913,1968.4,1967.9,5.8341893]
[1772431702359,5.26340039,1968.4,1967.9,5.8341893]
[1772431702576,5.26340039,1968.4,1967.9,5.8319893]
[1772431702793,5.26340039,1968.4,1967.9,7.10237407]
[1772431703284,6.53346972,1968.4,1967.9,7.10237407]
[1772431704060,6.53346972,1968.4,1967.8,7.10240826]
[1772431704395,6.53346972,1968.4,1967.9,0.0022]
[1772431705589,5.26340039,1968.4,1967.9,0.0022]
[1772431705791,6.53347429,1968.4,1967.9,0.0022]
[1772431705995,8.21527363,1968.5,1967.9,5.8341893]
[1772431706199,9.4852801,1968.5,1967.9,5.8341893]
[1772431706495,0.001,1968.2,1967.9,5.8341893]
[1772431707067,0.001,1968.2,1968.0,1.2703252]
[1772431708002,0.001,1968.6,1968.1,5.8319893]
[1772431708300,0.001,1968.6,1968.1,5.8341893]
[1772431709499,0.001,1968.6,1968.2,1.27019611]
[1772431710165,5.24269659,1968.6,1968.3,0.0022]
[1772431710595,5.24269659,1968.6,1968.1,1.27025311]
[1772431710897,5.24269659,1968.6,1968.2,0.0022]
[1772431712169,6.51264875,1968.6,1968.2,0.0022]
[1772431712399,5.24269659,1968.6,1968.2,0.0022]
[1772431712602,0.001,1968.6,1968.3,0.0022]
[1772431713988,0.001,1968.6,1968.4,0.0022]
[1772431715502,0.001,1968.6,1968.5,0.0022]
[1772431715672,0.001,1968.6,1968.4,0.0022]
[1772431716793,5.2274554,1968.6,1968.1,7.10220047]
[1772431718017,5.22279539,1968.5,1968.3,0.0011]
[1772431718898,6.49285449,1968.5,1968.3,0.0011]
[1772431721326,9.45685449,1968.5,1968.3,0.0011]
[1772431722109,8.18879539,1968.5,1968.3,0.0011]
[1772431722306,9.45880037,1968.5,1968.3,0.0011]
[1772431722626,5.19928187,1968.4,1968.3,0.0011]
[1772431722838,5.19928187,1968.4,1968.2,0.0011]
[1772431722992,6.46937884,1968.4,1968.2,0.0011]
[1772431723839,9.42780743,1968.5,1968.2,0.0011]
[1772431725408,8.15775517,1968.5,1968.2,0.0011]
[1772431725858,0.001,1968.5,1968.2,0.0011]
[1772431726008,0.001,1968.6,1968.2,0.0011]
[1772431726009,0.001,1968.6,1968.3,5.8319893]
[1772431727534,0.001,1968.6,1968.4,1.27006705]
[1772431727734,0.001,1968.6,1968.4,6.73036256]
[1772431728110,0.001,1968.6,1968.3,1.27008006]
[1772431728434,0.001,1968.6,1968.3,6.73037557]